bitfinex-derivatives/quotes_BTCF0:USTF0_20251118
["timestamp","ask_amount","ask_price","bid_price","bid_amount"]
[1763476433710,0.3608,92278.0,92261.0,0.3608]
[1763476433918,0.00219803,92270.0,92261.0,0.3608]
[1763476434113,8.613e-05,92269.0,92261.0,0.3608]
[1763476434718,0.3608,92267.0,92251.0,0.3608]
[1763476434916,0.00219803,92260.0,92251.0,0.3608]
[1763476435219,0.06756,92250.0,92232.0,0.3608]
[1763476435422,0.00219803,92240.0,92232.0,0.3608]
[1763476436023,9.607e-05,92239.0,92232.0,0.3608]
[1763476437324,9.607e-05,92239.0,92185.0,0.05892704]
[1763476437325,9.607e-05,92239.0,92226.0,0.3608]
[1763476438925,9.607e-05,92239.0,92236.0,0.3608]
[1763476440714,0.00016258,92250.0,92236.0,0.35482047]
[1763476440920,0.3608,92282.0,92249.0,0.3608]
[1763476441119,0.00219803,92300.0,92278.0,0.3608]
[1763476441318,0.00219803,92300.0,92286.0,0.3608]
[1763476441519,0.00219803,92300.0,92295.0,0.3608]
[1763476441820,0.00219803,92300.0,92297.0,0.3608]
[1763476442020,0.00219803,92300.0,92298.0,0.03369835]
[1763476442224,0.00016258,92307.0,92299.0,0.39449835]
[1763476442421,0.00016258,92307.0,92300.0,0.03363556]
[1763476442620,0.09021,92325.0,92301.0,0.03363556]
[1763476442823,0.3608,92328.0,92317.0,0.3608]
[1763476442824,0.00219803,92320.0,92317.0,0.3608]
[1763476443020,0.00219803,92330.0,92318.0,0.03363556]
[1763476443221,0.00219803,92330.0,92327.0,0.3608]
[1763476443423,0.00219803,92330.0,92319.0,0.03363556]
[1763476443424,0.00219803,92330.0,92328.0,0.03363556]
[1763476443618,0.00219803,92330.0,92317.0,0.3608]
[1763476443831,0.00219803,92330.0,92320.0,0.00016247]
[1763476444027,0.00219803,92330.0,92325.0,0.3608]
[1763476444822,0.00219803,92330.0,92326.0,0.03360551]
[1763476445127,0.00016247,92338.0,92329.0,0.3608]
[1763476445328,0.63964,92368.0,92337.0,0.3608]
[1763476445531,0.00219803,92350.0,92347.0,0.3608]
[1763476446127,0.00219803,92360.0,92347.0,0.3608]
[1763476446330,0.00219803,92360.0,92357.0,0.3608]
[1763476446533,0.3608,92377.0,92357.0,0.3608]
[1763476446534,0.00073267,92370.0,92357.0,0.3608]
[1763476446833,0.00073267,92370.0,92360.0,0.00219803]
[1763476447829,0.3608,92368.0,92360.0,0.00219803]
[1763476448430,0.3608,92368.0,92344.0,0.00016247]
[1763476448628,0.09021,92352.0,92344.0,0.00016247]
[1763476448838,0.3608,92348.0,92315.0,0.3608]
[1763476449039,0.00073267,92320.0,92315.0,0.3608]
[1763476449339,0.00073267,92320.0,92313.0,0.3608]
[1763476450232,0.3608,92318.0,92310.0,0.00219803]
[1763476450436,0.3608,92315.0,92310.0,0.00219803]
[1763476450731,0.3608,92315.0,92280.0,0.3608]
[1763476450934,0.3608,92294.0,92280.0,0.36299803]
[1763476451237,0.00073267,92290.0,92289.0,0.3608]
[1763476451733,0.00073267,92290.0,92280.0,0.3608]
[1763476451937,0.00073267,92290.0,92280.0,0.36299803]
[1763476452433,0.3608,92283.0,92276.0,0.00016247]
[1763476453529,0.3608,92283.0,92276.0,2.01e-06]
[1763476453931,0.3608,92282.0,92276.0,2.01e-06]
[1763476454139,0.3608,92282.0,92250.0,0.3608]
[1763476454331,0.00073267,92260.0,92250.0,0.36299803]
[1763476454726,8.954e-05,92259.0,92250.0,0.36299803]
[1763476455738,8.954e-05,92259.0,92245.0,0.00016257]
[1763476455739,0.09021,92250.0,92245.0,0.00016257]
[1763476455940,8.475e-05,92249.0,92245.0,0.00016257]
[1763476456932,8.475e-05,92249.0,92230.0,0.3608]
[1763476457132,0.09021,92225.0,92220.0,0.3608]
[1763476457737,0.00219803,92230.0,92220.0,0.3608]
[1763476457935,0.09021,92250.0,92233.0,0.3608]
[1763476458137,0.00219803,92250.0,92241.0,0.3608]
[1763476458644,0.09240803,92250.0,92241.0,0.3608]
[1763476458832,0.09240803,92250.0,92233.0,0.3608]
[1763476459032,0.001,92249.0,92233.0,0.3608]
[1763476459241,0.00219803,92240.0,92221.0,0.3608]
[1763476459438,0.09021,92225.0,92213.0,0.3608]
[1763476459742,0.00219803,92220.0,92193.0,0.3608]
[1763476459938,0.09021,92200.0,92193.0,0.3608]
[1763476460235,0.09021,92200.0,92176.0,0.3608]
[1763476460236,0.49240803,92200.0,92176.0,0.3608]
[1763476460544,0.49240803,92200.0,92158.0,0.3608]
[1763476460545,0.27788,92199.0,92158.0,0.3608]
[1763476460736,0.09021,92170.0,92152.0,0.3608]
[1763476461034,0.00219803,92160.0,92152.0,0.3608]
[1763476461241,0.09021,92200.0,92178.0,0.3608]
[1763476461440,0.09240803,92200.0,92186.0,0.3608]
[1763476462032,0.09240803,92200.0,92194.0,0.3608]
[1763476462234,0.09240803,92200.0,92189.0,0.3608]
[1763476462235,0.00219803,92200.0,92189.0,0.3608]
[1763476462732,0.00219803,92200.0,92170.0,0.3608]
[1763476463437,0.40419803,92200.0,92166.0,0.00027125]
[1763476463838,0.09021,92178.0,92166.0,0.00027125]
[1763476465742,0.09021,92178.0,92149.0,0.3608]
[1763476465937,0.00219803,92160.0,92149.0,0.3608]
[1763476466336,0.00219803,92160.0,92131.0,0.3608]
[1763476466337,0.08511,92144.0,92121.0,0.3608]
[1763476466534,0.00219803,92140.0,92121.0,0.3608]
[1763476466737,0.00219803,92140.0,92126.0,1.37e-06]
[1763476466738,1.5,92139.0,92126.0,1.37e-06]
[1763476467337,1.5,92139.0,92126.0,0.36080137]
[1763476467536,1.5,92139.0,92127.0,0.3608]
[1763476468441,1.5,92139.0,92126.0,1.37e-06]
[1763476469650,0.08365,92125.0,92117.0,0.00013886]
[1763476471136,0.00012044,92124.0,92117.0,0.00013886]
[1763476472453,0.00012044,92124.0,92079.0,0.3608]
[1763476472454,1.5,92123.0,92088.0,0.3608]
[1763476472653,0.08584803,92100.0,92079.0,0.3608]
[1763476472852,0.00219803,92100.0,92088.0,0.3608]
[1763476473158,0.00219803,92100.0,92096.0,0.3608]
[1763476474046,0.00219803,92110.0,92096.0,0.3608]
[1763476474249,0.00219803,92110.0,92104.0,0.3608]
[1763476475556,0.00219803,92110.0,92096.0,0.3608]
[1763476475757,0.00219803,92110.0,92087.0,0.3608]
[1763476476152,0.00219803,92110.0,92096.0,0.3608]
[1763476476951,0.00219803,92110.0,92096.0,0.3618]
[1763476477556,0.00219803,92110.0,92096.0,0.3608]
[1763476477757,0.00219803,92110.0,92096.0,0.3618]
[1763476477951,0.29542,92097.0,92096.0,0.001]
[1763476478146,0.29542,92097.0,92078.0,0.3608]
[1763476478147,0.08365,92092.0,92078.0,0.3608]
[1763476478361,0.29542,92087.0,92078.0,0.3608]
[1763476478662,0.29542,92087.0,92086.0,1.49e-06]
[1763476478957,0.29542,92087.0,92069.0,0.3608]
[1763476479160,0.08365,92092.0,92069.0,0.3608]
[1763476479161,0.00219803,92080.0,92069.0,0.3608]
[1763476479561,0.14676,92060.0,92059.0,0.3608]
[1763476479864,0.29761803,92060.0,92041.0,0.3608]
[1763476480052,0.00012756,92059.0,92041.0,0.3608]
[1763476480247,0.00012756,92059.0,92053.0,0.3608]
[1763476480458,0.00016294,92062.0,92053.0,0.3608]
[1763476480661,0.08265,92092.0,92070.0,0.3608]
[1763476480852,0.00219803,92080.0,92070.0,0.3608]
[1763476481456,0.00219803,92080.0,92070.0,0.3558]
[1763476481654,0.00219803,92080.0,92078.0,0.3608]
[1763476481852,0.68168404,92150.0,92086.0,0.3608]
[1763476482058,0.00219803,92100.0,92086.0,0.3608]
[1763476482449,0.00219803,92100.0,92078.0,0.3608]
[1763476483251,0.00219803,92100.0,92067.0,0.3608]
[1763476483658,0.00219803,92100.0,92076.0,0.3608]
[1763476483859,0.00219803,92100.0,92084.0,0.3608]
[1763476484647,0.00219803,92100.0,92092.0,0.3608]
[1763476485048,0.00219803,92100.0,92083.0,0.3608]
[1763476485251,0.08365,92092.0,92083.0,0.3608]
[1763476485450,0.00219803,92090.0,92083.0,0.3608]
[1763476485849,0.00012941,92099.0,92094.0,0.3608]
[1763476486054,0.08365,92125.0,92104.0,0.3608]
[1763476486249,0.00219803,92120.0,92104.0,0.3608]
[1763476487159,0.1999,92142.0,92104.0,0.3608]
[1763476487160,0.1999,92157.0,92112.0,0.3608]
[1763476487350,0.00219803,92150.0,92132.0,0.3608]
[1763476487554,0.00219803,92150.0,92144.0,0.3608]
[1763476487849,0.00219803,92150.0,92132.0,0.3608]
[1763476488060,0.00219803,92150.0,92133.0,0.02955162]
[1763476488260,0.00219803,92150.0,92140.0,0.3608]
[1763476488458,0.00219803,92150.0,92131.0,0.3608]
[1763476488758,0.08365,92136.0,92104.0,0.3608]
[1763476489069,0.00219803,92130.0,92112.0,0.3608]
[1763476489361,0.00219803,92130.0,92113.0,0.02968323]
[1763476489362,9.193e-05,92129.0,92113.0,0.02968323]
[1763476489661,9.193e-05,92129.0,92122.0,0.3608]
[1763476489862,9.193e-05,92129.0,92123.0,0.02968323]
[1763476490056,9.193e-05,92129.0,92112.0,0.36096284]
[1763476490257,0.00219803,92120.0,92113.0,0.02967747]
[1763476490449,0.00219803,92120.0,92112.0,0.36096284]
[1763476490450,0.00219803,92120.0,92114.0,0.02967747]
[1763476490650,0.00219803,92120.0,92112.0,0.00016284]
[1763476490651,0.00219803,92120.0,92115.0,0.02967747]
[1763476490856,0.00219803,92120.0,92116.0,0.02967747]
[1763476491058,0.00219803,92120.0,92112.0,0.00016284]
[1763476491059,0.00219803,92120.0,92117.0,0.02967747]
[1763476491260,0.00219803,92120.0,92118.0,0.02967747]
[1763476491455,0.00219803,92120.0,92112.0,0.00016284]
[1763476491456,0.00219803,92120.0,92119.0,0.02967747]
[1763476492662,9.193e-05,92129.0,92119.0,0.02967747]
[1763476492663,9.193e-05,92129.0,92122.0,0.3608]
[1763476492959,9.193e-05,92129.0,92123.0,0.02967747]
[1763476493262,9.193e-05,92129.0,92124.0,0.02967747]
[1763476493467,9.193e-05,92129.0,92125.0,0.02967747]
[1763476493665,9.193e-05,92129.0,92122.0,0.3608]
[1763476493666,9.193e-05,92129.0,92126.0,0.02967747]
[1763476493861,9.193e-05,92129.0,92127.0,0.02967747]
[1763476494069,9.193e-05,92129.0,92128.0,0.02967747]
[1763476495162,0.29551193,92129.0,92128.0,0.02967747]
[1763476497466,0.29551193,92129.0,92112.0,0.00016284]
[1763476497653,0.00219803,92120.0,92113.0,0.02983565]
[1763476497852,0.28396,92115.0,92114.0,0.02983565]
[1763476498062,0.00010107,92119.0,92112.0,0.00016284]
[1763476498262,0.00010107,92119.0,92113.0,0.02984652]
[1763476498464,0.00010107,92119.0,92114.0,0.02984652]
[1763476498663,0.00010107,92119.0,92112.0,0.00016284]
[1763476498867,0.00010107,92119.0,92113.0,0.02984544]
[1763476499163,0.00010107,92119.0,92116.0,0.3608]
[1763476499359,0.00016284,92130.0,92124.0,0.3608]
[1763476499558,1.5,92178.0,92125.0,0.02984544]
[1763476499559,0.1999,92177.0,92125.0,0.02984544]
[1763476499768,0.00219803,92150.0,92132.0,0.3608]
[1763476499959,0.00219803,92150.0,92133.0,0.02984544]
[1763476500155,0.00219803,92150.0,92134.0,0.02984544]
[1763476500355,0.00219803,92150.0,92124.0,0.3608]
[1763476500559,0.00016284,92146.0,92134.0,0.3608]
[1763476500762,0.08365,92180.0,92150.0,0.3608]
[1763476501064,0.08365,92180.0,92132.0,0.02810167]
[1763476501065,0.28396,92160.0,92159.0,0.3608]
[1763476501271,0.28396,92160.0,92140.0,0.03778422]
[1763476501272,0.07758,92148.0,92140.0,0.02862465]
[1763476501471,0.07758,92169.0,92147.0,0.3608]
[1763476501773,0.07758,92169.0,92148.0,0.02978921]
[1763476501774,0.28396,92149.0,92148.0,0.02978921]
[1763476501969,0.00016275,92167.0,92146.0,0.3608]
[1763476502172,0.00016275,92166.0,92161.0,0.3608]
[1763476502362,0.00016275,92166.0,92139.0,0.00016275]
[1763476502564,0.28396,92140.0,92139.0,0.00016275]
[1763476502763,0.14533803,92140.0,92139.0,0.00016275]
[1763476502968,0.00016275,92166.0,92139.0,0.00016275]
[1763476503269,0.00016275,92166.0,92142.0,0.3608]
[1763476503270,0.00219803,92160.0,92142.0,0.3608]
[1763476503463,0.00016275,92166.0,92161.0,0.3608]
[1763476503663,0.00016275,92166.0,92140.0,0.10848]
[1763476503664,0.00016275,92166.0,92160.0,0.3608]
[1763476503860,0.00016275,92166.0,92151.0,0.3608]
[1763476504068,0.00016275,92166.0,92142.0,0.3608]
[1763476504069,0.00219803,92160.0,92142.0,0.3608]
[1763476504372,0.00219803,92160.0,92143.0,0.02974133]
[1763476504560,0.00219803,92160.0,92144.0,0.02974133]
[1763476504765,0.00016275,92166.0,92150.0,0.3608]
[1763476504972,0.00016275,92166.0,92158.0,0.3608]
[1763476505170,1.5,92201.0,92168.0,0.3608]
[1763476505467,1.5,92201.0,92159.0,0.02974113]
[1763476505468,0.00219803,92200.0,92165.0,0.2776]
[1763476505668,0.20209803,92200.0,92147.0,0.3608]
[1763476505872,0.20209803,92200.0,92148.0,0.02971297]
[1763476506071,0.00016275,92183.0,92165.0,0.00016275]
[1763476506374,0.14314,92166.0,92165.0,0.00016275]
[1763476506575,0.28396,92166.0,92165.0,0.00016275]
[1763476506970,0.00219803,92170.0,92165.0,0.00016275]
[1763476507772,0.00219803,92170.0,92168.0,0.3608]
[1763476507967,0.07758,92180.0,92176.0,0.3608]
[1763476507968,0.00219803,92180.0,92176.0,0.3608]
[1763476508269,0.00016275,92183.0,92176.0,0.3608]
[1763476508770,0.00016275,92183.0,92173.0,0.14745676]
[1763476508973,0.07977803,92180.0,92176.0,0.3608]
[1763476509170,0.00016275,92183.0,92176.0,0.3608]
[1763476509369,0.1999,92223.0,92200.0,0.14745676]
[1763476509569,0.00219803,92210.0,92199.0,0.3608]
[1763476509770,0.1999,92239.0,92200.0,0.14745676]
[1763476509965,0.1999,92239.0,92199.0,0.3608]
[1763476509966,0.00219803,92220.0,92199.0,0.3608]
[1763476510165,0.07758,92202.0,92199.0,0.3608]
[1763476510367,0.28396,92192.0,92191.0,0.00016275]
[1763476510571,0.00219803,92190.0,92186.0,0.3608]
[1763476510761,0.00010704,92194.0,92186.0,0.3608]
[1763476510967,0.00010704,92194.0,92187.0,0.02967441]
[1763476511170,0.00010704,92194.0,92188.0,0.02967441]
[1763476511475,0.00010704,92194.0,92186.0,0.3608]
[1763476511674,0.07758,92190.0,92178.0,0.3608]
[1763476511873,0.07758,92190.0,92175.0,0.00016275]
[1763476511874,0.00219803,92180.0,92175.0,0.00016275]
[1763476512077,0.28396,92176.0,92175.0,0.00016275]
[1763476513271,0.00219803,92180.0,92176.0,0.3608]
[1763476513473,0.00010704,92194.0,92193.0,0.3608]
[1763476513780,0.00010704,92194.0,92184.0,0.3608]
[1763476513781,0.00219803,92190.0,92184.0,0.3608]
[1763476514664,0.28396,92176.0,92175.0,0.00016275]
[1763476514877,0.28396,92176.0,92157.0,0.3608]
[1763476515175,0.07758,92158.0,92140.0,0.02862465]
[1763476515363,0.07758,92158.0,92141.0,0.02975715]
[1763476515562,0.00219803,92150.0,92142.0,0.02975715]
[1763476515764,0.00219803,92150.0,92143.0,0.02975715]
[1763476515969,0.00219803,92150.0,92144.0,0.02975715]
[1763476516171,0.00219803,92150.0,92145.0,0.02975715]
[1763476516476,0.00219803,92150.0,92146.0,0.02975715]
[1763476516477,0.28396,92147.0,92146.0,0.02975715]
[1763476516670,0.07758,92138.0,92137.0,0.00016275]
[1763476516970,0.00219803,92140.0,92137.0,0.02994018]
[1763476517278,0.00219803,92140.0,92137.0,0.00016275]
[1763476517279,0.36154,92138.0,92137.0,0.00016275]
[1763476517665,0.28396,92134.0,92133.0,9.865e-05]
[1763476517878,0.00219803,92130.0,92108.0,0.02862465]
[1763476518065,0.00219803,92130.0,92109.0,0.02980477]
[1763476518270,0.00219803,92130.0,92110.0,0.02980477]
[1763476518578,0.00016284,92129.0,92111.0,0.02996761]
[1763476518769,0.00219803,92120.0,92112.0,0.02980477]
[1763476518971,9.865e-05,92128.0,92113.0,0.02980477]
[1763476519164,9.865e-05,92128.0,92119.0,0.1086779]
[1763476519373,9.865e-05,92128.0,92125.0,0.1086703]
[1763476519574,2.84e-06,92129.0,92127.0,0.1086689]
[1763476519877,0.1999,92201.0,92137.0,0.108657]
[1763476520073,0.46394376,92230.0,92120.0,0.1086767]
[1763476520074,0.00219803,92170.0,92151.0,0.02858724]
[1763476520267,0.07125,92184.0,92152.0,0.02980477]
[1763476520470,0.00219803,92180.0,92153.0,0.02980477]
[1763476520664,0.00219803,92180.0,92138.0,0.24936]
[1763476520665,0.00016263,92176.0,92157.0,0.00016274]
[1763476520867,0.00219803,92170.0,92158.0,0.02980477]
[1763476521071,0.00219803,92170.0,92157.0,0.00016274]
[1763476521273,0.00219803,92170.0,92158.0,0.02978262]
[1763476521476,0.00016263,92176.0,92159.0,0.02978262]
[1763476521778,0.07758,92230.0,92172.0,0.03811632]
[1763476521977,0.07758,92230.0,92160.0,0.03978261]
[1763476521978,0.00219803,92220.0,92189.0,0.02856791]
[1763476522174,0.00219803,92220.0,92191.0,0.02856791]
[1763476522369,0.00219803,92220.0,92192.0,0.02978262]
[1763476522573,0.00219803,92220.0,92193.0,0.02978262]
[1763476522767,0.00219803,92220.0,92196.0,0.00016274]
[1763476522978,0.07125,92200.0,92196.0,0.00016274]
[1763476523378,0.07125,92200.0,92160.0,0.05717449]
[1763476523379,0.07125,92200.0,92170.0,0.02856791]
[1763476523579,0.00219803,92180.0,92171.0,0.0297565]
[1763476523880,0.07125,92200.0,92172.0,0.0297565]
[1763476524183,0.1999,92229.0,92175.0,0.02856791]
[1763476524474,0.00016274,92211.0,92193.0,0.00016274]
[1763476524678,0.00219803,92200.0,92194.0,0.0297565]
[1763476524877,0.07344803,92200.0,92193.0,0.00016274]
[1763476525269,0.00016274,92211.0,92194.0,0.02974362]
[1763476525473,0.48293802,92280.0,92194.0,0.02974362]
[1763476525474,0.1999,92274.0,92204.0,0.02856791]
[1763476525674,0.00219803,92250.0,92208.0,0.02856791]
[1763476525874,0.00219803,92250.0,92209.0,0.02974362]
[1763476526079,0.07125,92225.0,92196.0,0.02856791]
[1763476526276,0.00219803,92210.0,92197.0,0.02973266]
[1763476526476,0.00219803,92210.0,92198.0,0.02973266]
[1763476526671,0.00219803,92210.0,92194.0,0.00016265]
[1763476526672,0.07125,92196.0,92194.0,0.00016265]
[1763476527781,0.07125,92196.0,92174.0,0.02856791]
[1763476527972,0.00219803,92180.0,92175.0,0.02977234]
[1763476528172,0.00219803,92180.0,92176.0,0.02977234]
[1763476528384,0.07297,92170.0,92162.0,0.02856791]
[1763476528585,0.07297,92170.0,92131.0,0.23563117]
[1763476528586,0.07516803,92170.0,92163.0,0.02980638]
[1763476528772,0.07516803,92170.0,92164.0,0.02980638]
[1763476529077,0.07516803,92170.0,92165.0,0.02980638]
[1763476529277,0.07516803,92170.0,92157.0,0.00016274]
[1763476529278,0.07516803,92170.0,92166.0,0.02980638]
[1763476529598,0.00016264,92176.0,92168.0,0.02856791]
[1763476529885,0.07516803,92170.0,92157.0,0.00016274]
[1763476530068,0.07516803,92170.0,92157.0,2.74e-06]
[1763476530273,0.07297,92144.0,92135.0,0.02856791]
[1763476530473,0.00219803,92140.0,92136.0,0.02956523]
[1763476530682,0.00219803,92140.0,92137.0,0.02956523]
[1763476530872,0.00219803,92140.0,92131.0,0.00011117]
[1763476531075,0.00219803,92140.0,92132.0,0.02957625]
[1763476531278,0.00219803,92140.0,92133.0,0.02957625]
[1763476531576,0.00219803,92140.0,92131.0,0.00011117]
[1763476531786,0.07297,92118.0,92102.0,0.02856791]
[1763476532076,0.07297,92118.0,92103.0,0.02938945]
[1763476532077,0.00219803,92110.0,92103.0,0.02938945]
[1763476532283,0.00219803,92110.0,92104.0,0.02938945]
[1763476532580,0.1999,92143.0,92105.0,0.02938945]
[1763476532779,0.00016284,92133.0,92118.0,0.02865259]
[1763476533077,0.00219803,92130.0,92119.0,0.02938945]
[1763476533285,0.00016284,92133.0,92120.0,0.02938945]
[1763476533472,0.00016284,92133.0,92119.0,0.02865259]
[1763476533473,8.307e-05,92142.0,92125.0,0.03811632]
[1763476533673,8.307e-05,92142.0,92115.0,0.00016284]
[1763476533674,0.1999,92195.0,92135.0,0.03811632]
[1763476533873,0.1999,92195.0,92153.0,0.02861651]
[1763476534069,0.00219803,92180.0,92156.0,0.02861651]
[1763476534272,0.00219803,92180.0,92138.0,0.27592]
[1763476534273,0.00219803,92180.0,92161.0,0.02861651]
[1763476534482,0.00219803,92180.0,92162.0,0.02938945]
[1763476534681,0.00236077,92180.0,92163.0,0.02938945]
[1763476534978,0.07297,92170.0,92164.0,0.02938945]
[1763476535180,0.07516803,92170.0,92161.0,0.00016274]
[1763476535483,0.07516803,92170.0,92162.0,0.02930229]
[1763476535782,0.07516803,92170.0,92161.0,0.00016274]
[1763476536878,0.07297,92150.0,92135.0,0.02861651]
[1763476537078,0.00219803,92140.0,92136.0,0.0292917]
[1763476537274,0.07297,92125.0,92110.0,0.02861651]
[1763476537474,0.07297,92125.0,92111.0,0.02931178]
[1763476537475,0.00219803,92120.0,92111.0,0.02931178]
[1763476537680,0.00219803,92120.0,92068.0,0.07607609]
[1763476537681,0.00219803,92120.0,92112.0,0.02931178]
[1763476537884,0.00219803,92120.0,92106.0,0.00016284]
[1763476538683,0.00016284,92125.0,92107.0,0.13785682]
[1763476538889,0.00016284,92125.0,92116.0,0.02861651]
[1763476539084,0.00016284,92125.0,92117.0,0.02929682]
[1763476539387,0.00016284,92125.0,92118.0,0.02929682]
[1763476539577,0.00219803,92120.0,92119.0,0.02929682]
[1763476540184,0.00219803,92120.0,92108.0,0.02861651]
[1763476540185,0.00016284,92125.0,92106.0,0.00016284]
[1763476540383,0.00016284,92125.0,92107.0,0.0291321]
[1763476540573,0.00219803,92120.0,92108.0,0.0291321]
[1763476540781,0.00219803,92120.0,92109.0,0.0291321]
[1763476541081,0.00219803,92120.0,92110.0,0.0291321]
[1763476541287,0.00219803,92120.0,92111.0,0.0291321]
[1763476541481,0.00219803,92120.0,92112.0,0.0291321]
[1763476541681,0.00219803,92120.0,92106.0,0.00016284]
[1763476542983,0.00219803,92120.0,92107.0,0.02912341]
[1763476543183,0.00219803,92120.0,92108.0,0.02912341]
[1763476543383,0.00219803,92120.0,92109.0,0.02912341]
[1763476543581,0.00219803,92120.0,92110.0,0.02912341]
[1763476543785,0.00219803,92120.0,92111.0,0.02912341]
[1763476543981,0.00219803,92120.0,92112.0,0.02912341]
[1763476544184,0.00219803,92120.0,92113.0,0.02912341]
[1763476544384,0.00219803,92120.0,92106.0,0.00016284]
[1763476544590,0.00219803,92120.0,92112.0,0.02861651]
[1763476544791,0.00219803,92120.0,92113.0,0.0291193]
[1763476545089,0.00016284,92125.0,92114.0,0.0291193]
[1763476545291,0.00219803,92120.0,92115.0,0.0291193]
[1763476545590,0.00219803,92120.0,92116.0,0.0291193]
[1763476545780,0.00219803,92120.0,92106.0,0.00016284]
[1763476545986,0.00219803,92120.0,92107.0,0.02911512]
[1763476546182,0.00219803,92120.0,92106.0,0.00016284]
[1763476548784,0.22993,92107.0,92106.0,0.00016284]
[1763476550482,0.00219803,92110.0,92106.0,0.00016284]
[1763476551581,0.00219803,92110.0,92107.0,0.10856]
[1763476551882,0.07297,92170.0,92108.0,0.02907713]
[1763476552082,0.07516803,92170.0,92132.0,0.02850632]
[1763476552381,0.07516803,92170.0,92136.0,0.02850632]
[1763476552584,0.07516803,92170.0,92138.0,0.02850632]
[1763476552782,0.07516803,92170.0,92139.0,0.05758345]
[1763476553090,0.00016266,92164.0,92145.0,0.00016284]
[1763476553286,0.00219803,92150.0,92146.0,0.02907713]
[1763476553494,0.00016266,92164.0,92147.0,0.02907713]
[1763476553686,0.00219803,92160.0,92148.0,0.02907713]
[1763476553882,0.00219803,92160.0,92149.0,0.02907713]
[1763476554085,0.00219803,92160.0,92150.0,0.02907713]
[1763476554291,0.00219803,92160.0,92151.0,0.02907713]
[1763476554485,0.00219803,92160.0,92152.0,0.02907713]
[1763476554687,0.07516803,92160.0,92153.0,0.02907713]
[1763476554893,0.07516803,92160.0,92145.0,0.00016284]
[1763476554894,0.07516803,92160.0,92154.0,0.02907713]
[1763476555092,0.07516803,92160.0,92155.0,0.02907713]
[1763476555394,0.00219803,92160.0,92156.0,0.02907713]
[1763476555586,0.00219803,92160.0,92157.0,0.02907713]
[1763476555785,0.07516803,92160.0,92145.0,0.00016284]
[1763476555981,0.07516803,92160.0,92146.0,0.02907653]
[1763476556182,0.07516803,92160.0,92147.0,0.02907653]
[1763476556388,0.07516803,92160.0,92148.0,0.02907653]
[1763476556591,0.07516803,92160.0,92149.0,0.02907653]
[1763476556792,0.07516803,92160.0,92150.0,0.02907653]
[1763476557091,0.07516803,92160.0,92151.0,0.02907653]
[1763476557294,0.07516803,92160.0,92152.0,0.02907653]
[1763476557496,0.07516803,92160.0,92153.0,0.02907653]
[1763476557683,0.07516803,92160.0,92145.0,0.00016284]
[1763476557888,0.1144,92147.0,92146.0,0.0291245]
[1763476558298,0.22725,92147.0,92146.0,0.0291245]
[1763476558799,0.23504,92146.0,92145.0,0.00016284]
[1763476559401,0.00219803,92150.0,92145.0,0.00016284]
[1763476559698,0.23504,92146.0,92145.0,0.00016284]
[1763476560097,0.00219803,92150.0,92145.0,0.00016284]
[1763476560299,0.00016266,92164.0,92146.0,0.13766328]
[1763476560491,0.00219803,92160.0,92147.0,0.02914328]
[1763476560687,0.00016266,92164.0,92152.0,0.02850632]
[1763476561000,0.00219803,92160.0,92157.0,0.02850632]
[1763476561193,0.00219803,92160.0,92158.0,0.02914328]
[1763476561389,0.00016266,92164.0,92159.0,0.02914328]
[1763476561596,0.1999,92220.0,92160.0,0.05769385]
[1763476561899,0.07297,92230.0,92181.0,0.02855057]
[1763476562098,0.00219803,92220.0,92200.0,0.02852407]
[1763476562291,0.00219803,92220.0,92201.0,0.13758328]
[1763476562488,0.00219803,92220.0,92202.0,0.02914328]
[1763476562695,0.00219803,92220.0,92203.0,0.02914328]
[1763476562893,0.00219803,92220.0,92204.0,0.02914328]
[1763476563088,0.00219803,92220.0,92205.0,0.02914328]
[1763476563292,0.07297,92230.0,92206.0,0.02914328]
[1763476563493,0.07516803,92230.0,92207.0,0.02914328]
[1763476563805,0.07516803,92230.0,92208.0,0.02914328]
[1763476563997,0.07516803,92230.0,92209.0,0.02914328]
[1763476564206,0.00219803,92230.0,92210.0,0.02914328]
[1763476564500,0.00219803,92230.0,92211.0,0.02914328]
[1763476564697,0.00219803,92230.0,92202.0,0.00016274]
[1763476564902,0.00219803,92230.0,92203.0,0.02895461]
[1763476565198,0.00219803,92230.0,92204.0,0.02895461]
[1763476565401,0.00219803,92230.0,92205.0,0.02895461]
[1763476565592,0.1999,92275.0,92206.0,0.02895461]
[1763476565795,0.00219803,92250.0,92221.0,0.02852407]
[1763476566099,0.00219803,92250.0,92220.0,0.38636376]
[1763476566100,0.00219803,92250.0,92226.0,0.00016264]
[1763476566295,0.06255,92232.0,92226.0,0.00016264]
[1763476566492,0.06255,92232.0,92201.0,0.02852407]
[1763476566493,0.10840001,92231.0,92183.0,0.02852407]
[1763476566799,0.00219803,92200.0,92184.0,0.02889605]
[1763476566998,0.00219803,92200.0,92160.0,0.47107164]
[1763476567199,0.00219803,92200.0,92161.0,0.02892306]
[1763476567394,0.00219803,92200.0,92160.0,0.47107164]
[1763476567594,0.06255,92175.0,92160.0,0.47107164]
[1763476567804,0.00219803,92170.0,92160.0,0.47107164]
[1763476567995,0.00219803,92170.0,92156.0,0.00016275]
[1763476569499,0.00219803,92170.0,92156.0,2.75e-06]
[1763476569699,0.00016199,92189.0,92156.0,2.75e-06]
[1763476569904,0.00219803,92180.0,92157.0,0.0288625]
[1763476570098,0.00219803,92180.0,92158.0,0.0288625]
[1763476570293,0.00016199,92189.0,92159.0,0.0288625]
[1763476570494,0.00016199,92189.0,92160.0,0.0288625]
[1763476570705,0.00016199,92189.0,92161.0,0.0288625]
[1763476570898,0.00016199,92189.0,92162.0,0.3027025]
[1763476571204,0.00016199,92189.0,92169.0,0.02852407]
[1763476571404,0.1999,92226.0,92170.0,0.05738657]
[1763476571594,0.00219803,92200.0,92171.0,0.05738657]
[1763476571796,0.00219803,92200.0,92172.0,0.0288625]
[1763476572000,0.00219803,92200.0,92161.0,0.27376]
[1763476572194,0.00219803,92200.0,92162.0,0.02884739]
[1763476572401,0.1999,92247.0,92176.0,0.02852407]
[1763476572597,0.1999,92247.0,92182.0,0.02852407]
[1763476572800,0.1999,92247.0,92177.0,0.02884739]
[1763476572801,0.00219803,92220.0,92200.0,0.32115661]
[1763476572993,0.00219803,92220.0,92201.0,0.02882985]
[1763476573199,0.05949564,92294.0,92202.0,0.02882985]
[1763476573200,0.1999,92273.0,92202.0,0.02882985]
[1763476573411,0.00219803,92230.0,92220.0,0.32115661]
[1763476573604,0.00219803,92230.0,92206.0,0.27364]
[1763476573807,0.00219803,92230.0,92207.0,0.02897574]
[1763476574007,0.00219803,92230.0,92208.0,0.0288131]
[1763476574200,0.00219803,92230.0,92207.0,0.10856264]